Cogmind - Beta 14 @@@ ROGUE MODE // 2024.12.21 @ 18:40:29 Player: blackdogzx Result: Destroyed by L-31 Rogue with Katana Performance ------------- Evolutions (1) 500 Regions Visited (2) 400 Robots Destroyed (12) 60 Value Destroyed (347) 347 Prototype IDs (0) 0 Alien Tech Used (0) 0 Bonus (0) 0 TOTAL SCORE: 1307 Bonus ------- None Cogmind --------- Core Integrity 0/400 Matter 162/300 Energy 100/100 System Corruption 1% Temperature Cool (0) Movement Core (100) Ox1 Location -9/Materials Parts ------- > --- POWER (1) -------- (None) > --- PROPULSION (2) --- (None) > --- UTILITY (4) ------ Small Storage Unit > --- WEAPON (2) ------- (None) > --- INVENTORY (8) ---- Assault Rifle Grenade Launcher Mining Laser Peak State ------------ > --- POWER ------------ Ion Engine > --- PROPULSION ------- Aluminum Leg Aluminum Leg > --- UTILITY ---------- Small Storage Unit Light Armor Plating > --- WEAPON ----------- Assault Rifle Grenade Launcher > --- INVENTORY -------- Beam Cannon Mining Laser [Rating: 7] Favorites ----------- Power Ion Engine Engine Ion Engine Propulsion Aluminum Leg Leg Aluminum Leg Utility Small Storage Unit Storage Small Storage Unit Protection Light Armor Plating Weapon Assault Rifle Energy Cannon Beam Cannon Ballistic Gun Assault Rifle Launcher Grenade Launcher Build | -11 -10 -9 ------- Run | Yrd Mat Mat Slots Evolved 2 | . . 2 Power . | . . . Propulsion . | . . . Utility 2 | . . 2 Weapon . | . . . Parts Attached 14 | 6 3 5 Power 3 | 1 1 1 Engine 3 | 1 1 1 Core . | . . . Reactor . | . . . Propulsion 2 | 2 . . Treads . | . . . Leg 2 | 2 . . Wheel . | . . . Hover . | . . . Flight . | . . . Utility 4 | 1 1 2 Device . | . . . Storage 1 | 1 . . Processor . | . . . Hackware . | . . . Protection 3 | . 1 2 Artifact . | . . . Weapon 5 | 2 1 2 Energy Gun . | . . . Energy Cannon 1 | . . 1 Ballistic Gun 2 | 2 . . Ballistic Cannon . | . . . Launcher 2 | . 1 1 Special Weapon . | . . . Impact Weapon . | . . . Slashing Weapon . | . . . Piercing Weapon . | . . . Special Melee Weapon . | . . . Unidentified Prototypes . | . . . Parts Lost 9 | . . 9 Power 2 | . . 2 Propulsion 2 | . . 2 Utility 3 | . . 3 Weapon 2 | . . 2 Highest Loss Streak 4 | . . 4 To Critical Strikes . | . . . Average Slot Usage (%) 76 | . 89 57 Engine 11 | . 14 8 Leg 21 | . 28 10 Storage 12 | . 14 11 Protection 6 | . 4 9 Energy Cannon 2 | . . 6 Ballistic Gun 13 | . 20 2 Launcher 8 | . 7 9 Peak Build Rating 7 | 6 7 7 Average Rating 5 | 4 6 5 On Entrance 4 | . 6 7 Naked Turns . | . . . Heaviest Build 20 | 11 18 20 Greatest Support 20 | 20 20 20 Greatest Overweight (x) 6 | 1 . 6 Average Overweight (x) . | . . 1 Largest Inventory Capacity 8 | 8 8 8 Average Capacity 7 | 7 8 8 Most Carried 4 | 1 3 4 Average Carried 2 | . 1 3 Final Capacity 8 | 8 8 8 Final Carried 3 | 1 2 3 Class Distribution -------------------- 100% | Mutant Dominant Class ---------------- Mutant | -10/Materials Mutant | -9/Materials Resources | -11 -10 -9 ----------- Run | Yrd Mat Mat Matter Collected 397 | 203 179 15 Remotely . | . . . Salvage Created 262 | . 153 109 Parts 22 | . 11 11 Haulers Intercepted . | . . . Recyclers Shooed . | . . . Parts Field Recycled . | . . . Retrieved Matter . | . . . Parts Self-Destructed . | . . . Prevented . | . . . Kills | -11 -10 -9 ------- Run | Yrd Mat Mat Combat Hostiles Destroyed 7 | . 4 3 Guns 2 | . 2 . Cannons 1 | . . 1 AOE 4 | . 2 2 Classes Destroyed 6 | . 3 3 Worker 1 | . . 1 Builder 2 | . 1 1 Tunneler 1 | . 1 . Watcher 1 | . . 1 Grunt 5 | . 4 1 Sentry 2 | . . 2 Best Kill Streak 4 | . 4 3 Combat Bots Only 2 | . 2 2 Max Kills in Single Turn 2 | . 2 1 Gunslinging . | . . . Exploded 1 | . 1 1 Melee . | . . . Uniques/NPCs Destroyed . | . . . Combat | -11 -10 -9 -------- Run | Yrd Mat Mat Hostile Shots Fired 134 | . 29 105 Missed 34 | . 6 28 Damage Taken 1574 | . 268 1306 Core 433 | . 21 412 Absorbed by Shields . | . . . Core Remaining (%) 95 | 100 91 . Volleys Fired 32 | . 19 13 Largest 2 | . 2 2 Hottest 93 | . 50 93 Shots Fired 59 | . 33 26 Gun 29 | . 29 . Cannon 13 | . . 13 Launcher 17 | . 4 13 Special . | . . . Kinetic 29 | . 29 . Thermal 13 | . . 13 Explosive 16 | . 4 12 Electromagnetic 1 | . . 1 Robot Hit Streak 15 | . 15 6 Robot Miss Streak 4 | . 4 2 Penetration Max . | . . . Secondary Targets 1 | . 1 . Max Gunslinging Chain 1 | . 1 . Shots Hit Robots 40 | . 23 17 Core Hits 26 | . 14 12 Critical Kills . | . . . Critical Parts Destroyed . | . . . Critical Strikes . | . . . Melee Attacks . | . . . Impact . | . . . Slashing . | . . . Piercing . | . . . Sneak Attacks . | . . . Combat Hostiles . | . . . Follow-up Attacks . | . . . Damage Inflicted 1307 | . 466 841 Guns 239 | . 239 . Cannons 157 | . . 157 Explosions 908 | . 227 681 Melee . | . . . Ramming 3 | . . 3 Kinetic 239 | . 239 . Thermal 462 | . . 462 Explosive 577 | . 227 350 Electromagnetic 26 | . . 26 Impact . | . . . Slashing . | . . . Piercing . | . . . Highest Corruption 4 | . 4 1 Average Corruption 3 | . 3 1 Corruption Purged . | . . . Corruption Blocked . | . . . Effects 9 | . 9 . Message Errors 3 | . 3 . Matter Fused 2 | . 2 . Heat Flow Errors 1 | . 1 . Energy Discharges 3 | . 3 . Overload Shots . | . . . Overflow Damage 73 | . . 73 Projectiles . | . . . Explosions 73 | . . 73 Melee . | . . . Knockbacks . | . . . Impact . | . . . Kinetic . | . . . Secondary . | . . . Self-Inflicted Damage 137 | . . 137 Shots 4 | . . 4 Rammed 2 | . . 2 Targets Rammed 2 | . . 2 Kicked . | . . . Crushed . | . . . Highest Temperature 315 | . 123 315 Average Temperature 81 | . 22 115 Received Heat Transfer 537 | . 153 384 Siege Activations . | . . . Robots Corrupted . | . . . Combat Hostiles . | . . . Parts Fried . | . . . Impact Corruptions . | . . . Robots Melted . | . . . Combat Hostiles . | . . . Parts Melted . | . . . Heat Transferred 533 | . . 533 Parts Sabotaged . | . . . Parts Stolen . | . . . Parts Stripped . | . . . Power Chain Reactions . | . . . Alert | -11 -10 -9 ------- Run | Yrd Mat Mat Peak Influence 260 | . 145 260 Initial 18 | . . 18 Average 78 | . 54 132 Maximum Alert Level 1 | . . 1 Low Security (%) 91 | 100 100 77 Level 1 8 | . . 22 Level 2 . | . . . Level 3 . | . . . Level 4 . | . . . Level 5 . | . . . High Security . | . . . Max Security . | . . . Squads Dispatched 2 | . . 2 Investigation . | . . . Extermination . | . . . Reinforcement 2 | . . 2 Assault . | . . . Garrison . | . . . Intercept . | . . . Searches Triggered . | . . . Construction Impeded . | . . . Haulers Reinforced . | . . . Active Scanning Responses . | . . . Cargo Convoy Interrupts . | . . . Stealth | -11 -10 -9 --------- Run | Yrd Mat Mat Distress Signals 3 | . 2 1 Communications Jammed . | . . . Distress Signals . | . . . Times Spotted 19 | . 9 10 Peak Tracking Total 5 | . 5 4 Tactical Retreats 1 | . 1 . Traps | -11 -10 -9 ------- Run | Yrd Mat Mat Traps Triggered 2 | . 2 . Indirectly . | . . . Trap Hack Attempts . | . . . Triggered . | . . . Disarmed . | . . . Reprogrammed . | . . . Reused . | . . . Traps Extracted . | . . . Installed . | . . . Triggered . | . . . Machines | -11 -10 -9 ---------- Run | Yrd Mat Mat Machines Disabled 4 | . . 4 Max in Single Turn 3 | . . 3 Machines Repaired . | . . . Machines Dismantled . | . . . Machines Sabotaged . | . . . Overloaded Fab Kills . | . . . Hacking | -11 -10 -9 --------- Run | Yrd Mat Mat Machines Accessed 1 | . 1 . Terminals 1 | . 1 . Fabricators . | . . . Repair Stations . | . . . Recycling Units . | . . . Scanalyzers . | . . . Garrison Access . | . . . Total Hacks 1 | . 1 . Successful 1 | . 1 . Failed . | . . . Catastrophic . | . . . Database Lockouts . | . . . Manual . | . . . Terminals 1 | . 1 . Fabricators . | . . . Repair Stations . | . . . Recycling Units . | . . . Scanalyzers . | . . . Garrison Access . | . . . Terminal Hacks 1 | . 1 . Record 1 | . 1 . Fabricator Hacks . | . . . Repair Station Hacks . | . . . Recycling Unit Hacks . | . . . Scanalyzer . | . . . Garrison Access Hacks . | . . . Unauthorized Hacks . | . . . Terminals . | . . . Fabricators . | . . . Repair Stations . | . . . Recycling Units . | . . . Scanalyzers . | . . . Garrison Access . | . . . Data Cores Recovered . | . . . Used . | . . . Hacking Detections . | . . . Full Trace Events . | . . . Feedback Events . | . . . Feedback Blocked . | . . . Robot Schematics Acquired . | . . . Robots Built . | . . . Authchips . | . . . Time . | . . . Total Robot Build Rating . | . . . Part Schematics Acquired . | . . . Parts Built . | . . . Authchips . | . . . Time . | . . . Total Part Build Rating . | . . . Parts Repaired . | . . . Time . | . . . Parts Recycled . | . . . Recycled Matter . | . . . Retrieved Matter . | . . . Retrieved Components . | . . . Parts Scanalyzed . | . . . Part Schematics Acquired . | . . . Parts Damaged . | . . . Bothacking | -11 -10 -9 ------------ Run | Yrd Mat Mat Used RIF Installer . | . . . Robots Hacked . | . . . Non-combat . | . . . Combat . | . . . Robot Hacks Applied . | . . . Relay Couplers Released . | . . . Fabnet Peak Effective % . | . . . Robots Rewired . | . . . Allies Hacked . | . . . Hacks Repelled . | . . . Allies | -11 -10 -9 -------- Run | Yrd Mat Mat Total Allies . | . . . Largest Group . | . . . Highest-Rated Group . | . . . Highest-Rated Ally . | . . . Total Orders . | . . . Ally Attacks . | . . . Total Damage . | . . . Kills . | . . . Allies Corrupted . | . . . Allies Melted . | . . . Intel | -11 -10 -9 ------- Run | Yrd Mat Mat Robot Analysis Total . | . . . Derelict Logs Recovered . | . . . Drone Launches . | . . . Drone Recoveries . | . . . Exploration | -11 -10 -9 ------------- Run | Yrd Mat Mat Turns Passed 918 | 70 518 330 Spaces Moved 585 | 58 373 154 Core 49 | 16 . 33 Treads . | . . . Legs 536 | 42 373 121 Wheels . | . . . Hover . | . . . Flight . | . . . Fastest Speed 50 | 50 120 120 Average Speed 134 | 105 120 178 Slowest Speed 350 | 120 120 350 Overloaded Moves . | . . . Propulsion Burnouts . | . . . Robots Hopped . | . . . Cave-ins Triggered . | . . . Exploration Rate (%) 29 | 5 59 24 Regions Visited 2 Branch Regions . Pre-discovered Areas . | . . . Known Exits Taken . | . . . Unknown Exits Taken 2 | 1 1 . Scrap Searched . | . . . Spaces Dug . | . . . Terrain Destroyed 124 | . 23 101 Melee . | . . . Projectile . | . . . AOE 124 | . 23 101 Terrain Rammed . | . . . Walls Destroyed . | . . . Machines Disabled . | . . . Actions | -11 -10 -9 --------- Run | Yrd Mat Mat Total 656 | 64 414 178 Wait 12 | . 10 2 Move 583 | 57 372 154 Hop . | . . . Pick Up 8 | 1 5 2 Fast Attach 9 | 6 1 2 Attach 2 | . 1 1 Detach 1 | . 1 . Swap 3 | . 1 2 Drop 4 | . 4 . Fire 32 | . 19 13 Melee . | . . . Ram 2 | . . 2 Kick . | . . . Crush . | . . . Escape Stasis . | . . . Rewire . | . . . Trap . | . . . Miscellaneous . | . . . Route ------- -11/Scrapyard -10/Materials (discovered 2 exits: [*Mat] / [*Min]) -9/Materials (discovered 1 exit: [*Min]) History --------- Turn | Location | Event 4 | -11/Scrapyard | Discovered new exit (range 16) 71 | -11/Scrapyard | Entered Materials 277 | -10/Materials | Discovered new exit (range 15) 319 | -10/Materials | Build established: Mutant 374 | -10/Materials | Discovered new exit (range 11) 589 | -10/Materials | Entered another Materials area 589 | -9/Materials | Evolved 2 slots: Utility x2 845 | -9/Materials | Core integrity fell below 50% 860 | -9/Materials | Core integrity fell below 20% 881 | -9/Materials | Lost 4 parts (1p1n2w) 888 | -9/Materials | Discovered new exit (range 11) 919 | -9/Materials | Destroyed by L-31 Rogue with Katana Last Messages --------------- 00848_ Acquired Hrd. Light Armor Plating. 00850_ EMP Blaster destroyed. 00852_ K-01 Serf collects debris. 00852_ Acquired Hrd. Light Armor Plating. 00858_ K-01 Serf collects debris. 00860_ R-06 Scavenger collects Corrupted Lgt. Treads. 00862_ M-13 Machinist repairs Y-45 Defender. 00863_ K-01 Serf collects debris. 00864_ M-13 Machinist repairs Hvy. Assault Rifle. 00864_ R-06 Scavenger collects Lgt. Armor Plating. 00865_ U-05 Engineer lays Concrete. 00888_ EXIT=FOUND 00912_ Hrd. Light Armor Plating destroyed. 00913_ Slammed into L-31 Rogue. 00917_ Processing Tank disabled. 00917_ Hrd. Light Armor Plating destroyed. 00919_ Ion Engine destroyed. Map ----- +----------------------------------------------------+ | ?????????????????????????????????????????????????? | | ?????????????????????????????????????????????????? | | ?????????????????????????????????????????????????? | | ?????????????????????????????????????????????????? | | ?????????????????????????????????????????????????? | | ?????????????????????????????????????????????????? | | ?????????????????????????????????????????????????? | | ?????????????????????????????????????????????????? | | ?????????????????????????????????????????????????? | | ?????????????????????????????????????????????????? | | ?????????????????????????????????????????????????? | | ?????????????????????????????????????????????????? | | ?????????????????????????????????????????????????? | | ?????????????????????????????????????????????????? | | ?????????????????????????????????????????????????? | | ?????????????????????????????????????????????????? | | ?????????????????????????????????????????????????? | | ?????????????????????????????????????????????????? | | ?????????????????????????????????????????????????? | | ?????????????????????????????????????????????????? | | ????????????????????#######??????????????????????? | | ????????????????????# #??????????????????????? | | ????????????????????# ""#??????????????????????? | | ????????????????????# ! Y"#??????????????????????? | | ????????????????????# ""#??????????????????????? | | ????????????????????# l@#????????????"""""?????? | | ??????????????????? # "" #######????? |"! "?????? | | ??????????????????? + """ #! #####" "##???? | | ????????????????????#r"""Y# ???? | | ????????????????????# """ + T < ???? | | ????????????????????# """ # ????? | | ????????????????????# g # ### ?? #####? | | ????????????????????# | ##### #???????#"" ## | | ????????????????????#######???# #??????# """"""" | | ??????????????????????????????# #??????""" | | ??????????????????????????????# #?????? " | | ??????????????????????????????# #?????? " | | ??????????????????????????????# ####### | | ??????????????????????????????# / = ] | | ??????????????????????????????# #" ] | | ??????????????????????????????# #T | | ????????????????????????????? #" | | ??????????????????????????? / | | ?????????????????????????? # % """" | | ???????????????????????? ######## " | | ???????????????????????# ????????# # | | ???????????????????????# ?????????# " " # | | ???????????????????????#??????????###""""""" " + | | ????????????????????????????????????# " " ## # | | ????????????????????????????????????###" # ### # | +----------------------------------------------------+ Best States ------------- Heat Dissipation 28 Energy Generation 10 Energy Capacity 250 Matter Stores 300 Matter Capacity 300 Sight Range 16 Terrain Scan Density 10 Armor Coverage 300 Evasion (%) 55 Item Schematics ----------------- None Robot Schematics ------------------ None Fabricated ------------ Nothing Alien Tech Used ----------------- None Achievements -------------- None Challenges ------------ None Game ------ Seed PhasingReactiveWell Manual? 0 Play Time 00:11:21 Cumulative 21.0 hours Start 2024.12.21 @ 18:30:13 End 2024.12.21 @ 18:40:29 Sessions 1 Manual Loads 0 Difficulty Rogue Special Mode None Game No. 32 Rogue 29 Adventurer 3 Explorer 0 Win Type - Total 0 Types 0/0/0/0/0/0/0/0/0 Lore% 9 Gallery% 19 Achievement% 15 Wizard Run 0 Options --------- Layout 1 ASCII 0 Keyboard 1 Movement Numpad Keybinds 0 Fullscreen 1 Font 24/Smallcaps Map View 50x35 Zoom Use 0% Tactical HUD 1 Map Filters NONE Filters NONE Steam 1 RUN: 51ef26f2-d470-44fe-8250-8924ac55c76a